fUSD/lending_fUSD_20250812
["ID","MTS","AMOUNT","RATE_DAILY","PERIOD"]
[378779275,1755013361945,-400.0,0.00044109,120]
[378779276,1755013362048,-415.91,0.00044109,120]
[378779277,1755013362143,-400.0,0.00044109,120]
[378779278,1755013362235,-471.4,0.00044109,120]
[378779279,1755013362323,-400.0,0.00044109,120]
[378779280,1755013362414,-492.65,0.00044109,120]
[378779281,1755013362508,-400.0,0.00044109,120]
[378779282,1755013362603,-454.89,0.00044109,120]
[378779283,1755013362697,-400.0,0.00044109,120]
[378779284,1755013362787,-884.68,0.00044109,120]
[378779285,1755013362878,-458.27,0.00044109,120]
[378779286,1755013362977,-788.42,0.00044109,120]
[378779287,1755013363071,-1034.47,0.00044109,120]
[378779288,1755013363166,-400.0,0.00044109,120]
[378779289,1755013363259,-1071.0,0.00044109,120]
[378779290,1755013363352,-1133.61,0.00044109,120]
[378779291,1755013363454,-400.0,0.00044109,120]
[378779292,1755013363558,-462.67,0.00044109,120]
[378779293,1755013363661,-984.38,0.00044109,120]
[378779294,1755013363759,-884.11,0.00044109,120]
[378779295,1755013363850,-523.37,0.00044109,120]
[378779296,1755013363958,-400.0,0.00044109,120]
[378779297,1755013364054,-848.6,0.00044109,120]
[378779298,1755013364148,-555.13,0.00044109,120]
[378779299,1755013364246,-1339.73,0.00044109,120]
[378779300,1755013364339,-483.91,0.00044109,120]
[378779301,1755013364436,-1109.65,0.00044109,120]
[378779302,1755013364530,-226.72,0.00044109,120]
[378779303,1755013364625,-402.94,0.00044109,120]
[378779304,1755013364720,-400.0,0.00044109,120]
[378779305,1755013364810,-619.16,0.00044109,120]
[378779306,1755013364902,-1023.43,0.00044109,120]
[378779307,1755013364998,-400.0,0.00044109,120]
[378779308,1755013365091,-400.0,0.00044109,120]
[378779309,1755013365188,-400.0,0.00044109,120]
[378779310,1755013365285,-410.83,0.00044109,120]
[378779311,1755013365379,-811.14,0.00044109,120]
[378779312,1755013365468,-487.79,0.00044109,120]
[378779313,1755013365551,-560.93,0.00044109,120]
[378779314,1755013365644,-194.44,0.00044109,120]
[378779315,1755013365732,-400.0,0.00044109,120]
[378779316,1755013365828,-400.0,0.00044109,120]
[378779317,1755013365932,-371.2,0.00044272,120]
[378779318,1755013366026,-400.0,0.00044383,120]
[378779319,1755013366116,-400.0,0.00044383,120]
[378779320,1755013366415,-237.8,0.00044383,120]
[378779321,1755013366507,-436.61,0.00044383,120]
[378779322,1755013366604,-5555.72,0.00044383,120]
[378779323,1755013366700,-469.66,0.00044383,120]
[378779324,1755013366785,-431.3,0.00044383,120]
[378779325,1755013366879,-441.84,0.00044383,120]
[378779326,1755013366973,-936.01,0.00044383,120]
[378779327,1755013367067,-428.32,0.00044383,120]
[378779328,1755013367157,-731.55,0.00044383,120]
[378779329,1755013367256,-400.0,0.00044383,120]
[378779330,1755013367358,-497.62,0.00044383,120]
[378779331,1755013367466,-496.02,0.00044383,120]
[378779332,1755013367574,-1703.29,0.00044383,120]
[378779333,1755013367682,-493.55,0.00044383,120]
[378779334,1755013367790,-517.63,0.00044383,120]
[378779335,1755013367899,-617.08,0.00044383,120]
[378779336,1755013368004,-456.44,0.00044383,120]
[378779337,1755013368113,-400.0,0.00044383,120]
[378779338,1755013368221,-400.0,0.00044383,120]
[378779340,1755013368322,-400.0,0.00044383,120]
[378779341,1755013368424,-449.38,0.00044383,120]
[378779342,1755013368519,-406.99,0.00044383,120]
[378779343,1755013368621,-400.0,0.00044383,120]
[378779344,1755013368726,-400.0,0.00044383,120]
[378779345,1755013368825,-482.81,0.00044383,120]
[378779346,1755013368928,-738.0,0.00044383,120]
[378779347,1755013369033,-400.0,0.00044383,120]
[378779348,1755013369130,-400.0,0.00044383,120]
[378779349,1755013369231,-400.0,0.00044383,120]
[378779350,1755013369326,-400.0,0.00044383,120]
[378779351,1755013369423,-400.0,0.00044383,120]
[378779352,1755013369521,-478.33,0.00044383,120]
[378779353,1755013369619,-400.0,0.00044383,120]
[378779354,1755013369717,-400.0,0.00044383,120]
[378779355,1755013369809,-400.0,0.00044383,120]
[378779356,1755013369897,-1006.51,0.00044383,120]
[378779357,1755013369996,-659.26,0.00044383,120]
[378779358,1755013370087,-593.41,0.00044383,120]
[378779359,1755013370178,-400.0,0.00044383,120]
[378779360,1755013370270,-749.57,0.00044383,120]
[378779361,1755013370358,-400.0,0.00044383,120]
[378779362,1755013370446,-400.0,0.00044383,120]
[378779363,1755013370538,-1400.07,0.00044383,120]
[378779364,1755013370635,-840.93,0.00044383,120]
[378779365,1755013370723,-400.0,0.00044383,120]
[378779366,1755013370810,-428.58829787,0.00044383,120]
[378779367,1755013370899,-581.66,0.00044383,120]
[378779368,1755013370989,-400.0,0.00044383,120]
[378779369,1755013371080,-772.33,0.00044383,120]
[378779370,1755013371174,-579.73,0.00044383,120]
[378779371,1755013371262,-602.52,0.00044383,120]
[378779372,1755013371347,-417.24,0.00044383,120]
[378779373,1755013371441,-400.0,0.00044383,120]
[378779374,1755013371535,-692.55,0.00044383,120]
[378779375,1755013371626,-541.24,0.00044383,120]
[378779376,1755013371718,-400.0,0.00044383,120]
[378779377,1755013371810,-400.0,0.00044383,120]
[378779378,1755013371898,-400.0,0.00044383,120]
[378779379,1755013371992,-400.0,0.00044383,120]
[378779380,1755013372092,-577.35,0.00044383,120]
[378779381,1755013372188,-559.48,0.00044383,120]
[378779382,1755013372281,-400.0,0.00044383,120]
[378779383,1755013372374,-493.68,0.00044383,120]
[378779384,1755013372464,-631.28,0.00044383,120]
[378779385,1755013372562,-657.22,0.00044383,120]
[378779386,1755013372663,-400.0,0.00044383,120]
[378779387,1755013372759,-558.83,0.00044383,120]
[378779388,1755013372863,-472.40678087,0.00044383,120]
[378779389,1755013372961,-490.83,0.00044383,120]
[378779390,1755013373061,-400.0,0.00044383,120]
[378779391,1755013373161,-400.0,0.00044383,120]
[378779392,1755013373259,-474.08,0.00044383,120]
[378779393,1755013373366,-417.22,0.00044383,120]
[378779394,1755013373464,-417.25,0.00044383,120]
[378779395,1755013373564,-843.11,0.00044383,120]
[378779396,1755013373665,-400.0,0.00044383,120]
[378779397,1755013373769,-400.0,0.00044383,120]
[378779398,1755013373872,-1157.06,0.00044383,120]
[378779399,1755013373967,-400.0,0.00044383,120]
[378779400,1755013374059,-400.0,0.00044383,120]
[378779401,1755013374097,-400.0,0.00044383,120]
[378779402,1755013374133,-702.0,0.00044383,120]
[378779403,1755013374169,-423.06,0.00044383,120]
[378779404,1755013374206,-974.95,0.00044383,120]
[378779405,1755013374243,-400.0,0.00044383,120]
[378779406,1755013374278,-400.0,0.00044383,120]
[378779407,1755013374314,-408.23,0.00044383,120]
[378779408,1755013374350,-483.36,0.00044383,120]
[378779409,1755013374387,-400.0,0.00044383,120]
[378779410,1755013374425,-631.67,0.00044383,120]
[378779411,1755013374462,-1961.58,0.00044383,120]
[378779412,1755013374499,-400.0,0.00044383,120]
[378779413,1755013374537,-409.05,0.00044383,120]
[378779414,1755013374575,-954.42,0.00044383,120]
[378779415,1755013374612,-649.55,0.00044383,120]
[378779416,1755013374649,-518.43,0.00044383,120]
[378779417,1755013374688,-434.01,0.00044383,120]
[378779418,1755013374724,-750.62,0.00044383,120]
[378779419,1755013374761,-419.92,0.00044383,120]
[378779420,1755013374799,-400.0,0.00044383,120]
[378779421,1755013374835,-465.19,0.00044383,120]
[378779422,1755013374872,-166.932657,0.00044383,120]
[378779423,1755013374910,-552.57,0.00044383,120]
[378779424,1755013374951,-339.727935,0.00044383,120]
[378779425,1755013374994,-445.06,0.00044383,120]
[378779426,1755013375032,-655.15,0.00044383,120]
[378779427,1755013375069,-400.0,0.00044383,120]
[378779428,1755013375107,-894.77,0.00044383,120]
[378779429,1755013375145,-486.56,0.00044383,120]
[378779430,1755013375184,-445.06,0.00044383,120]
[378779431,1755013375221,-660.44,0.00044383,120]
[378779432,1755013375259,-478.96,0.00044383,120]
[378779433,1755013375297,-522.26,0.00044383,120]
[378779434,1755013375336,-519.01,0.00044383,120]
[378779435,1755013375375,-489.54,0.00044383,120]
[378779436,1755013375416,-400.0,0.00044383,120]
[378779437,1755013375458,-419.82,0.00044383,120]
[378779438,1755013375648,-400.0,0.00044383,120]
[378779439,1755013375689,-400.0,0.00044383,120]
[378779440,1755013375728,-656.99,0.00044383,120]
[378779441,1755013375769,-409.03,0.00044383,120]
[378779442,1755013375806,-687.26,0.00044383,120]
[378779443,1755013375843,-338.659071,0.00044383,120]
[378779444,1755013375879,-430.22,0.00044383,120]
[378779445,1755013375917,-400.0,0.00044383,120]
[378779446,1755013375957,-1801.5,0.00044383,120]
[378779447,1755013375997,-618.64,0.00044383,120]
[378779448,1755013376037,-573.67,0.00044383,120]
[378779449,1755013376077,-4790.26,0.00044383,120]
[378779450,1755013376115,-441.56,0.00044383,120]
[378779451,1755013376152,-155.889645,0.00044383,120]
[378779452,1755013376190,-404.67,0.00044383,120]
[378779453,1755013376228,-495.68,0.00044383,120]
[378779454,1755013376266,-400.0,0.00044383,120]
[378779455,1755013376301,-416.73,0.00044383,120]
[378779456,1755013376337,-400.0,0.00044383,120]
[378779457,1755013376374,-400.0,0.00044383,120]
[378779458,1755013376415,-400.0,0.00044383,120]
[378779459,1755013376454,-412.2,0.00044383,120]
[378779460,1755013376493,-317.97,0.00044383,120]
[378779461,1755013376530,-465.29,0.00044383,120]
[378779462,1755013376568,-516.1,0.00044383,120]
[378779463,1755013376605,-732.64,0.00044383,120]
[378779464,1755013376642,-247.82,0.00044383,120]
[378779465,1755013376683,-400.0,0.00044383,120]
[378779466,1755013376722,-400.0,0.00044383,120]
[378779467,1755013376758,-511.3,0.00044383,120]
[378779468,1755013376796,-160.23,0.00044383,120]
[378779469,1755013376835,-640.88,0.00044383,120]
[378779470,1755013376873,-400.0,0.00044383,120]
[378779471,1755013376911,-400.0,0.00044383,120]
[378779472,1755013376951,-708.84,0.00044383,120]
[378779473,1755013376990,-400.0,0.00044383,120]
[378779474,1755013377029,-673.79,0.00044383,120]
[378779475,1755013377070,-400.0,0.00044383,120]
[378779476,1755013377110,-400.0,0.00044383,120]
[378779477,1755013377151,-400.0,0.00044383,120]
[378779478,1755013377192,-778.6,0.00044383,120]
[378779479,1755013377232,-532.61,0.00044383,120]
[378779480,1755013377272,-527.12,0.00044383,120]
[378779481,1755013377311,-440.23,0.00044383,120]
[378779482,1755013377350,-594.96,0.00044383,120]
[378779483,1755013377388,-979.17,0.00044383,120]
[378779484,1755013377428,-400.0,0.00044383,120]
[378779485,1755013377469,-400.0,0.00044383,120]
[378779486,1755013377507,-400.0,0.00044383,120]
[378779487,1755013377547,-945.69,0.00044383,120]
[378779488,1755013377587,-400.0,0.00044383,120]
[378779489,1755013377626,-400.0,0.00044383,120]
[378779490,1755013377665,-525.12,0.00044383,120]
[378779491,1755013377703,-603.68,0.00044383,120]
[378779492,1755013377739,-438.19,0.00044383,120]
[378779493,1755013377776,-449.47,0.00044383,120]
[378779494,1755013377813,-400.0,0.00044383,120]
[378779495,1755013377850,-565.39,0.00044383,120]
[378779496,1755013377888,-400.0,0.00044383,120]
[378779497,1755013377926,-1026.08,0.00044383,120]
[378779498,1755013377966,-635.45,0.00044383,120]
[378779499,1755013378004,-764.59,0.00044383,120]
[378779500,1755013378045,-400.0,0.00044383,120]
[378779501,1755013378083,-658.03,0.00044383,120]
[378779502,1755013378121,-382.85,0.00044383,120]
[378779503,1755013378159,-568.21,0.00044383,120]
[378779504,1755013378197,-683.24,0.00044383,120]
[378779505,1755013378234,-400.0,0.00044383,120]
[378779506,1755013378272,-347.19,0.00044383,120]
[378779507,1755013378309,-400.0,0.00044383,120]
[378779508,1755013378346,-212.5,0.00044383,120]
[378779509,1755013378382,-414.42,0.00044383,120]
[378779510,1755013378419,-430.24,0.00044383,120]
[378779511,1755013378455,-606.5,0.00044383,120]
[378779512,1755013378493,-646.39,0.00044383,120]
[378779513,1755013378534,-509.68,0.00044383,120]
[378779514,1755013378571,-400.0,0.00044383,120]
[378779515,1755013378607,-400.0,0.00044383,120]
[378779516,1755013378643,-837.81,0.00044383,120]
[378779517,1755013378681,-1018.49,0.00044383,120]
[378779518,1755013378717,-400.0,0.00044383,120]
[378779519,1755013378753,-577.84,0.00044383,120]
[378779520,1755013378790,-400.0,0.00044383,120]
[378779521,1755013378827,-415.91,0.00044383,120]
[378779522,1755013378865,-400.0,0.00044383,120]
[378779523,1755013378903,-471.4,0.00044383,120]
[378779524,1755013378941,-400.0,0.00044383,120]
[378779525,1755013378977,-492.65,0.00044383,120]
[378779526,1755013379014,-400.0,0.00044383,120]
[378779527,1755013379052,-454.89,0.00044383,120]
[378779528,1755013379089,-400.0,0.00044383,120]
[378779529,1755013379129,-884.68,0.00044383,120]
[378779530,1755013379166,-458.27,0.00044383,120]
[378779531,1755013379205,-788.42,0.00044383,120]
[378779532,1755013379246,-1034.47,0.00044383,120]
[378779533,1755013379287,-400.0,0.00044383,120]
[378779534,1755013379325,-1071.0,0.00044383,120]
[378779535,1755013379361,-1133.61,0.00044383,120]
[378779536,1755013379398,-400.0,0.00044383,120]
[378779537,1755013379438,-462.67,0.00044383,120]
[378779538,1755013379476,-984.38,0.00044383,120]
[378779539,1755013379514,-884.11,0.00044383,120]
[378779540,1755013379552,-400.0,0.00044383,120]
[378779541,1755013379592,-848.6,0.00044383,120]
[378779542,1755013379630,-555.13,0.00044383,120]
[378779543,1755013379669,-1339.73,0.00044383,120]
[378779544,1755013379708,-483.91,0.00044383,120]
[378779545,1755013379746,-1109.65,0.00044383,120]
[378779546,1755013379781,-402.94,0.00044383,120]
[378779547,1755013379817,-400.0,0.00044383,120]
[378779548,1755013379853,-619.16,0.00044383,120]
[378779549,1755013379890,-1023.43,0.00044383,120]
[378779550,1755013379926,-400.0,0.00044383,120]
[378779551,1755013379964,-373.26,0.00044383,120]
[378779552,1755013380001,-400.0,0.00044383,120]
[378779553,1755013380040,-410.83,0.00044383,120]
[378779554,1755013380079,-811.14,0.00044383,120]
[378779555,1755013380293,-487.79,0.00044383,120]
[378779556,1755013380336,-560.93,0.00044383,120]
[378779557,1755013380377,-400.0,0.00044383,120]
[378779558,1755013380421,-400.0,0.00044383,120]
[378779559,1755013380462,-23417.53731696,0.000445,120]
[378779560,1755013380502,-371.2,0.00044525,120]
[378779561,1755013380540,-400.0,0.00044657,120]
[378779562,1755013380581,-400.0,0.00044657,120]
[378779563,1755013380620,-436.61,0.00044657,120]
[378779564,1755013380662,-5555.72,0.00044657,120]
[378779565,1755013380701,-469.66,0.00044657,120]
[378779566,1755013380741,-431.3,0.00044657,120]
[378779567,1755013380779,-441.84,0.00044657,120]
[378779568,1755013380816,-936.01,0.00044657,120]
[378779569,1755013380856,-428.32,0.00044657,120]
[378779570,1755013380895,-731.55,0.00044657,120]
[378779571,1755013380935,-400.0,0.00044657,120]
[378779572,1755013380975,-497.62,0.00044657,120]
[378779573,1755013381013,-496.02,0.00044657,120]
[378779574,1755013381052,-1703.29,0.00044657,120]
[378779575,1755013381090,-493.55,0.00044657,120]
[378779576,1755013381128,-517.63,0.00044657,120]
[378779577,1755013381166,-617.08,0.00044657,120]
[378779578,1755013381204,-456.44,0.00044657,120]
[378779579,1755013381242,-281.49,0.00044657,120]
[378779580,1755013381281,-400.0,0.00044657,120]
[378779581,1755013381318,-456.48315989,0.00044657,120]
[378779582,1755013381355,-449.38,0.00044657,120]
[378779583,1755013381392,-400.0,0.00044657,120]
[378779584,1755013381433,-400.0,0.00044657,120]
[378779585,1755013381471,-482.81,0.00044657,120]
[378779586,1755013381508,-738.0,0.00044657,120]
[378779587,1755013381545,-430.7933871,0.00044657,120]
[378779588,1755013381583,-400.0,0.00044657,120]
[378779589,1755013381620,-400.0,0.00044657,120]
[378779590,1755013381657,-400.0,0.00044657,120]
[378779591,1755013381697,-400.0,0.00044657,120]
[378779592,1755013381733,-478.33,0.00044657,120]
[378779593,1755013381771,-400.0,0.00044657,120]
[378779594,1755013381809,-400.0,0.00044657,120]
[378779595,1755013381846,-400.0,0.00044657,120]
[378779596,1755013381885,-1006.51,0.00044657,120]
[378779597,1755013381924,-659.26,0.00044657,120]
[378779598,1755013381961,-593.41,0.00044657,120]
[378779599,1755013381998,-400.0,0.00044657,120]
[378779600,1755013382037,-749.57,0.00044657,120]
[378779601,1755013382075,-400.0,0.00044657,120]
[378779602,1755013382111,-400.0,0.00044657,120]
[378779603,1755013382151,-1400.07,0.00044657,120]
[378779604,1755013382190,-840.93,0.00044657,120]
[378779605,1755013382226,-400.0,0.00044657,120]
[378779606,1755013382263,-581.66,0.00044657,120]
[378779607,1755013382299,-400.0,0.00044657,120]
[378779608,1755013382337,-772.33,0.00044657,120]
[378779609,1755013382375,-579.73,0.00044657,120]
[378779610,1755013382413,-602.52,0.00044657,120]
[378779611,1755013382456,-417.24,0.00044657,120]
[378779612,1755013382496,-400.0,0.00044657,120]
[378779613,1755013382534,-692.55,0.00044657,120]
[378779614,1755013382572,-541.24,0.00044657,120]
[378779615,1755013382609,-400.0,0.00044657,120]
[378779616,1755013382647,-400.0,0.00044657,120]
[378779617,1755013382685,-400.0,0.00044657,120]
[378779618,1755013382723,-400.0,0.00044657,120]
[378779619,1755013382759,-577.35,0.00044657,120]
[378779620,1755013382798,-400.0,0.00044657,120]
[378779621,1755013382836,-559.48,0.00044657,120]
[378779622,1755013382875,-493.68,0.00044657,120]
[378779623,1755013382913,-631.28,0.00044657,120]
[378779624,1755013382953,-657.22,0.00044657,120]
[378779625,1755013382992,-400.0,0.00044657,120]
[378779626,1755013383029,-558.83,0.00044657,120]
[378779627,1755013383068,-455.37,0.00044657,120]
[378779628,1755013383110,-400.0,0.00044657,120]
[378779629,1755013383150,-474.08,0.00044657,120]
[378779630,1755013383190,-417.22,0.00044657,120]
[378779631,1755013383230,-417.25,0.00044657,120]
[378779632,1755013383270,-843.11,0.00044657,120]
[378779633,1755013383311,-400.0,0.00044657,120]
[378779634,1755013383356,-400.0,0.00044657,120]
[378779635,1755013383401,-1157.06,0.00044657,120]
[378779636,1755013383444,-400.0,0.00044657,120]
[378779637,1755013383487,-400.0,0.00044657,120]
[378779638,1755013383529,-400.0,0.00044657,120]
[378779639,1755013383572,-702.0,0.00044657,120]
[378779640,1755013383616,-423.06,0.00044657,120]
[378779641,1755013383658,-974.95,0.00044657,120]
[378779642,1755013383699,-400.0,0.00044657,120]
[378779643,1755013383740,-400.0,0.00044657,120]
[378779644,1755013383783,-408.23,0.00044657,120]
[378779645,1755013383825,-483.36,0.00044657,120]
[378779646,1755013383866,-400.0,0.00044657,120]
[378779647,1755013383906,-631.67,0.00044657,120]
[378779648,1755013383950,-1961.58,0.00044657,120]
[378779649,1755013383991,-400.0,0.00044657,120]
[378779650,1755013384031,-409.05,0.00044657,120]
[378779651,1755013384074,-954.42,0.00044657,120]
[378779652,1755013384115,-649.55,0.00044657,120]
[378779653,1755013384153,-518.43,0.00044657,120]
[378779654,1755013384191,-750.62,0.00044657,120]
[378779655,1755013384234,-419.92,0.00044657,120]
[378779656,1755013384272,-400.0,0.00044657,120]
[378779657,1755013384311,-465.19,0.00044657,120]
[378779658,1755013384350,-166.932657,0.00044657,120]
[378779659,1755013384388,-552.57,0.00044657,120]
[378779660,1755013384428,-339.727935,0.00044657,120]
[378779661,1755013384468,-445.06,0.00044657,120]
[378779662,1755013384506,-655.15,0.00044657,120]
[378779663,1755013384545,-400.0,0.00044657,120]
[378779664,1755013384585,-894.77,0.00044657,120]
[378779665,1755013384624,-486.56,0.00044657,120]
[378779666,1755013384664,-445.06,0.00044657,120]
[378779667,1755013384704,-660.44,0.00044657,120]
[378779668,1755013384747,-478.96,0.00044657,120]
[378779669,1755013384785,-522.26,0.00044657,120]
[378779670,1755013384822,-519.01,0.00044657,120]
[378779671,1755013384861,-489.54,0.00044657,120]
[378779672,1755013385098,-400.0,0.00044657,120]
[378779673,1755013385144,-419.82,0.00044657,120]
[378779674,1755013385185,-400.0,0.00044657,120]
[378779675,1755013385224,-400.0,0.00044657,120]
[378779676,1755013385264,-656.99,0.00044657,120]
[378779677,1755013385304,-409.03,0.00044657,120]
[378779678,1755013385344,-687.26,0.00044657,120]
[378779679,1755013385382,-338.659071,0.00044657,120]
[378779680,1755013385423,-430.22,0.00044657,120]
[378779681,1755013385467,-400.0,0.00044657,120]
[378779682,1755013385508,-1801.5,0.00044657,120]
[378779683,1755013385549,-618.64,0.00044657,120]
[378779684,1755013385587,-573.67,0.00044657,120]
[378779685,1755013385627,-4790.26,0.00044657,120]
[378779686,1755013385668,-441.56,0.00044657,120]
[378779687,1755013385706,-404.67,0.00044657,120]
[378779688,1755013385750,-495.68,0.00044657,120]
[378779689,1755013385789,-400.0,0.00044657,120]
[378779690,1755013385828,-416.73,0.00044657,120]
[378779691,1755013385865,-400.0,0.00044657,120]
[378779692,1755013385904,-400.0,0.00044657,120]
[378779693,1755013385944,-400.0,0.00044657,120]
[378779694,1755013385982,-412.2,0.00044657,120]
[378779695,1755013386022,-465.29,0.00044657,120]
[378779696,1755013386060,-516.1,0.00044657,120]
[378779697,1755013386098,-732.64,0.00044657,120]
[378779698,1755013386137,-400.0,0.00044657,120]
[378779699,1755013386175,-400.0,0.00044657,120]
[378779700,1755013386214,-511.3,0.00044657,120]
[378779701,1755013386253,-640.88,0.00044657,120]
[378779702,1755013386292,-400.0,0.00044657,120]
[378779703,1755013386329,-400.0,0.00044657,120]
[378779704,1755013386367,-708.84,0.00044657,120]
[378779705,1755013386406,-400.0,0.00044657,120]
[378779706,1755013386456,-673.79,0.00044657,120]
[378779707,1755013386499,-400.0,0.00044657,120]
[378779708,1755013386547,-400.0,0.00044657,120]
[378779709,1755013386589,-400.0,0.00044657,120]
[378779710,1755013386632,-778.6,0.00044657,120]
[378779711,1755013386673,-532.61,0.00044657,120]
[378779712,1755013386719,-527.12,0.00044657,120]
[378779713,1755013386764,-440.23,0.00044657,120]
[378779714,1755013386805,-594.96,0.00044657,120]
[378779715,1755013386853,-979.17,0.00044657,120]
[378779716,1755013386901,-400.0,0.00044657,120]
[378779717,1755013386953,-400.0,0.00044657,120]
[378779718,1755013386998,-400.0,0.00044657,120]
[378779719,1755013387039,-945.69,0.00044657,120]
[378779720,1755013387080,-400.0,0.00044657,120]
[378779721,1755013387125,-400.0,0.00044657,120]
[378779722,1755013387172,-603.68,0.00044657,120]
[378779723,1755013387213,-438.19,0.00044657,120]
[378779724,1755013387252,-449.47,0.00044657,120]
[378779725,1755013387290,-400.0,0.00044657,120]
[378779726,1755013387337,-565.39,0.00044657,120]
[378779727,1755013387376,-400.0,0.00044657,120]
[378779728,1755013387417,-1026.08,0.00044657,120]
[378779729,1755013387468,-635.45,0.00044657,120]
[378779730,1755013387511,-764.59,0.00044657,120]
[378779731,1755013387561,-400.0,0.00044657,120]
[378779732,1755013387611,-658.03,0.00044657,120]
[378779733,1755013387666,-568.21,0.00044657,120]
[378779734,1755013387712,-683.24,0.00044657,120]
[378779735,1755013387763,-400.0,0.00044657,120]
[378779736,1755013387815,-400.0,0.00044657,120]
[378779737,1755013387862,-414.42,0.00044657,120]
[378779738,1755013387913,-430.24,0.00044657,120]
[378779739,1755013387968,-606.5,0.00044657,120]
[378779740,1755013388022,-646.39,0.00044657,120]
[378779741,1755013388069,-509.68,0.00044657,120]
[378779742,1755013388120,-400.0,0.00044657,120]
[378779743,1755013388167,-400.0,0.00044657,120]
[378779744,1755013388215,-837.81,0.00044657,120]
[378779745,1755013388261,-1018.49,0.00044657,120]
[378779746,1755013388306,-400.0,0.00044657,120]
[378779747,1755013388351,-400.0,0.00044657,120]
[378779748,1755013388397,-577.84,0.00044657,120]
[378779749,1755013388448,-415.91,0.00044657,120]
[378779750,1755013388494,-400.0,0.00044657,120]
[378779751,1755013388539,-471.4,0.00044657,120]
[378779752,1755013388585,-400.0,0.00044657,120]
[378779753,1755013388629,-492.65,0.00044657,120]
[378779754,1755013388676,-357.68,0.00044657,120]
[378779755,1755013388721,-454.89,0.00044657,120]
[378779756,1755013388769,-400.0,0.00044657,120]
[378779757,1755013388812,-884.68,0.00044657,120]
[378779758,1755013388856,-458.27,0.00044657,120]
[378779759,1755013388901,-788.42,0.00044657,120]
[378779760,1755013388949,-1034.47,0.00044657,120]
[378779761,1755013388994,-400.0,0.00044657,120]
[378779762,1755013389040,-1071.0,0.00044657,120]
[378779763,1755013389085,-1133.61,0.00044657,120]
[378779764,1755013389129,-400.0,0.00044657,120]
[378779765,1755013389174,-462.67,0.00044657,120]
[378779766,1755013389217,-984.38,0.00044657,120]
[378779767,1755013389263,-884.11,0.00044657,120]
[378779768,1755013389309,-400.0,0.00044657,120]
[378779769,1755013389355,-848.6,0.00044657,120]
[378779770,1755013389400,-555.13,0.00044657,120]
[378779771,1755013389449,-1339.73,0.00044657,120]
[378779772,1755013389498,-483.91,0.00044657,120]
[378779773,1755013389544,-1109.65,0.00044657,120]
[378779774,1755013389589,-402.94,0.00044657,120]
[378779775,1755013389634,-400.0,0.00044657,120]